bitfinex/quotes_ETHUSD_20240709
["timestamp","ask_amount","ask_price","bid_price","bid_amount"]
[1720500501102,0.03147463,3072.1,3071.5,0.55]
[1720500501315,0.03147463,3072.1,3071.2,3.25597]
[1720500501316,0.03147463,3072.1,3071.3,0.55]
[1720500501605,0.03147463,3072.1,3071.3,3.80594]
[1720500501992,0.03147463,3072.1,3071.5,3.25571]
[1720500502198,0.03147463,3072.1,3071.7,3.2555]
[1720500502519,0.03147463,3072.1,3071.8,0.55]
[1720500502822,0.34012654,3072.2,3071.8,3.87050887]
[1720500503184,0.03158543,3072.1,3071.8,3.87050887]
[1720500503391,0.03158543,3072.1,3072.0,3.2552]
[1720500503567,2.59799206,3072.8,3072.0,3.87029295]
[1720500503766,0.34010368,3072.6,3072.1,3.87017247]
[1720500504232,0.0316894,3072.5,3072.1,3.80508]
[1720500505312,0.0316894,3072.5,3072.1,0.55]
[1720500505613,0.31516871,3072.5,3071.8,0.55]
[1720500505795,0.31516871,3072.5,3071.6,3.25557]
[1720500507076,0.31516871,3072.5,3071.7,0.55]
[1720500507278,0.31182724,3072.4,3071.5,0.55]
[1720500507791,0.0315595,3072.3,3071.5,0.55]
[1720500512581,2.3647,3072.2,3071.5,0.55]
[1720500512784,2.3647,3072.2,3071.4,0.55]
[1720500512785,0.23962595,3072.1,3071.4,0.55]
[1720500513038,0.27100659,3072.1,3071.4,0.55]
[1720500513911,0.27100659,3072.1,3071.0,3.25622]
[1720500514119,0.26357066,3072.0,3071.1,0.55]
[1720500514411,0.26357066,3072.0,3071.1,3.80615]
[1720500514412,0.03128136,3071.9,3071.1,3.80615]
[1720500514937,0.03128136,3071.9,3071.0,3.25617]
[1720500514938,3.49275603,3071.8,3070.5,3.25671]
[1720500515245,1.51167821,3071.7,3070.6,3.25668]
[1720500515409,1.12805603,3071.6,3070.7,3.25649]
[1720500515601,0.03118697,3071.6,3070.7,3.25649]
[1720500516011,0.35240374,3071.7,3070.7,3.25649]
[1720500516240,2.3647,3071.8,3070.9,3.25637]
[1720500516449,0.03343716,3071.6,3071.0,3.25625]
[1720500516616,0.03101483,3071.7,3071.0,3.25625]
[1720500516824,2.3647,3071.8,3071.0,3.25625]
[1720500517011,2.2528,3072.4,3071.1,3.80616]
[1720500517222,2.2528,3072.4,3071.4,3.25575]
[1720500517223,1.12795349,3072.3,3071.4,3.25575]
[1720500517404,2.2528,3072.4,3071.5,0.61510844]
[1720500517602,2.2528,3072.4,3071.8,3.2554]
[1720500517832,0.34010368,3072.6,3071.9,3.2553]
[1720500518027,3.61384758,3073.9,3072.5,6.50934]
[1720500518340,1.12741517,3073.8,3072.6,0.55]
[1720500518501,0.34010249,3073.8,3072.9,1.69]
[1720500518705,2.59799206,3074.2,3073.6,3.25343]
[1720500519050,2.59799206,3074.2,3073.7,0.55]
[1720500520347,2.85779127,3074.2,3073.7,0.55]
[1720500522129,2.85779127,3074.2,3073.3,3.25374]
[1720500522330,2.85779127,3074.2,3073.4,0.55]
[1720500523108,2.85779127,3074.2,3073.0,3.25412]
[1720500523349,0.28577913,3074.1,3073.0,3.25412]
[1720500524277,2.2587,3074.0,3072.8,3.25435]
[1720500524449,0.25444791,3073.9,3072.6,2.2705]
[1720500524665,2.59799206,3074.2,3072.9,3.25425]
[1720500524811,2.59799206,3074.2,3073.6,3.25351]
[1720500525553,2.59799206,3074.2,3073.4,0.06506182]
[1720500525554,2.59799206,3074.2,3073.4,3.31874182]
[1720500525761,2.59799206,3074.2,3073.5,0.55]
[1720500526048,2.59799206,3074.2,3073.5,3.80357]
[1720500526273,2.85779127,3074.2,3073.5,3.80357]
[1720500526407,2.3749,3074.1,3073.0,3.25412]
[1720500526611,0.52326913,3074.0,3073.1,3.25403]
[1720500527261,0.52326913,3074.0,3073.2,3.25392]
[1720500527413,0.52326913,3074.0,3073.3,3.25374]
[1720500527745,0.52326913,3074.0,3073.4,3.2537]
[1720500527962,0.28981691,3073.9,3073.4,3.2537]
[1720500528176,2.3749,3074.1,3073.4,3.2537]
[1720500528377,2.3749,3074.1,3073.5,3.8036]
[1720500528582,2.59799206,3074.2,3073.6,3.25343]
[1720500528789,2.59799206,3074.2,3073.7,3.8034]
[1720500529085,2.59799206,3074.2,3073.9,3.25319]
[1720500529237,2.59799206,3074.2,3073.8,3.25328]
[1720500529436,2.59799206,3074.2,3073.6,0.06505735]
[1720500529666,2.59799206,3074.2,3073.7,0.55]
[1720500530269,2.85779127,3074.2,3073.6,0.55]
[1720500530575,2.85779127,3074.2,3073.7,3.2534]
[1720500530742,2.59799206,3074.2,3073.5,3.80351]
[1720500531079,2.59799206,3074.2,3073.0,1.69]
[1720500531080,2.59799206,3074.2,3073.1,3.25403]
[1720500531263,2.3998,3074.1,3072.6,3.9605]
[1720500531466,2.65959921,3074.1,3072.6,3.9605]
[1720500531637,2.65959921,3074.1,3073.1,3.25404]
[1720500532791,2.65959921,3074.1,3073.1,3.25401]
[1720500535882,2.65959921,3074.1,3073.2,3.25393]
[1720500536081,0.52575913,3074.0,3073.2,3.25393]
[1720500536489,0.52575913,3074.0,3073.3,3.80381]
[1720500536689,2.65959921,3074.1,3073.4,3.25371]
[1720500537853,2.3998,3074.1,3073.6,3.25351]
[1720500538180,2.59799206,3074.2,3073.7,3.8034]
[1720500538545,2.59799206,3074.2,3073.8,0.06506205]
[1720500538752,7.36,3074.5,3074.2,3.25285]
[1720500538952,2.3776,3074.7,3074.2,3.25285]
[1720500539690,7.36,3075.0,3074.3,3.25275]
[1720500540683,7.36,3075.0,3074.4,3.25264]
[1720500540883,7.36,3075.0,3074.3,3.25275]
[1720500541053,7.36,3075.0,3074.5,3.25254]
[1720500541450,7.36,3075.0,3074.3,3.25275]
[1720500541659,7.36,3075.0,3074.4,3.25265]
[1720500542661,4.09799206,3075.3,3074.5,3.25255]
[1720500543159,2.2674,3075.2,3074.5,3.25255]
[1720500547298,1.12682945,3075.1,3074.5,3.25255]
[1720500547611,2.2674,3075.2,3074.5,3.25255]
[1720500548070,1.12684896,3075.1,3074.5,3.25255]
[1720500548267,1.12684943,3075.0,3074.5,3.25255]
[1720500548466,2.2674,3075.2,3074.5,3.25255]
[1720500548798,1.80436938,3075.1,3074.5,3.25255]
[1720500548971,0.67751913,3075.1,3074.5,3.25255]
[1720500549298,0.67751913,3075.1,3074.4,3.25259]
[1720500551504,0.67751913,3075.1,3074.1,3.25291]
[1720500551709,1.42139338,3075.0,3073.9,3.25316]
[1720500551864,2.4701,3074.8,3073.7,3.25333]
[1720500552065,1.48660162,3074.7,3073.3,5.66895]
[1720500552263,1.12690147,3074.6,3073.3,5.66895]
[1720500553106,1.12690147,3074.6,3073.5,3.25361]
[1720500553417,1.12690147,3074.6,3073.6,3.25348]
[1720500554077,1.12690147,3074.6,3073.3,5.66899]
[1720500554280,0.44866016,3074.5,3073.5,3.25354]
[1720500554485,1.12709098,3074.4,3073.6,0.55]
[1720500554798,0.44866016,3074.5,3073.6,0.55]
[1720500554969,1.12709031,3074.4,3073.6,0.55]
[1720500555170,0.44866016,3074.5,3073.6,0.55]
[1720500555367,1.12709643,3074.4,3073.6,0.55]
[1720500555700,0.44866016,3074.5,3073.6,0.55]
[1720500555905,0.44866016,3074.5,3073.0,1.69]
[1720500555906,2.284,3074.3,3073.1,3.25396]
[1720500556118,4.0661936,3074.2,3072.9,3.25423]
[1720500556280,3.41109231,3074.1,3073.0,3.25413]
[1720500556482,4.12709231,3074.0,3073.0,3.25413]
[1720500556800,1.12709231,3073.9,3073.0,3.25413]
[1720500557008,0.52541846,3073.8,3073.0,3.25413]
[1720500557372,0.52541846,3073.8,3072.7,3.25442]
[1720500557762,0.52541846,3073.8,3072.8,3.25435]
[1720500558127,0.52541846,3073.8,3072.9,0.55]
[1720500559777,1.12738675,3073.7,3072.9,0.55]
[1720500559983,0.16528052,3073.6,3072.9,0.55]
[1720500560214,0.52541846,3073.8,3072.9,0.55]
[1720500560525,1.12738141,3073.7,3072.9,0.55]
[1720500560718,0.52541846,3073.8,3072.8,0.55]
[1720500561183,1.12739837,3073.7,3072.8,0.55]
[1720500561385,0.52541846,3073.8,3072.8,0.55]
[1720500561906,3.37940151,3073.7,3072.8,0.55]
[1720500562105,0.390482,3073.6,3072.8,0.55]
[1720500562311,0.390482,3073.6,3072.2,1.69]
[1720500562312,0.390482,3073.6,3072.3,3.25481]
[1720500562508,2.2634,3073.5,3071.9,3.25527]
[1720500562819,2.2634,3073.5,3072.0,0.00103476]
[1720500562820,2.2634,3073.3,3072.0,0.00103476]
[1720500563029,1.12754332,3073.4,3071.9,3.25527]
[1720500563030,3.39094332,3073.2,3071.9,3.25527]
[1720500563233,4.46663765,3073.1,3071.9,3.25527]
[1720500563384,3.39094332,3073.0,3071.6,5.59389]
[1720500563585,2.2634,3073.0,3071.6,5.59389]
[1720500564231,2.2634,3073.0,3071.2,7.28428]
[1720500564232,2.2634,3072.8,3071.2,7.28428]
[1720500564520,2.2634,3072.8,3071.4,3.25584]
[1720500564716,5.2634,3072.8,3071.4,3.25584]
[1720500565122,1.12786698,3072.7,3071.2,5.59435]
[1720500565318,0.71865431,3072.7,3071.2,5.59435]
[1720500565496,0.71865431,3072.7,3071.3,3.25593]
[1720500566034,0.71865431,3072.7,3071.4,3.25584]
[1720500566629,0.71865431,3072.7,3071.5,3.25571]
[1720500566843,0.59820543,3072.6,3071.6,0.55]
[1720500567531,0.59820543,3072.6,3071.4,3.25584]
[1720500567532,2.4268,3072.5,3071.3,3.25587]
[1720500567842,2.4268,3072.5,3071.4,0.06510826]
[1720500567843,0.30250054,3072.4,3071.4,0.06510826]
[1720500568019,0.30250054,3072.4,3071.5,3.25571]
[1720500568223,3.30250054,3072.4,3071.6,0.06510524]
[1720500568406,2.4268,3072.5,3071.7,3.25552]
[1720500568801,2.4268,3072.5,3071.8,0.55]
[1720500569520,2.4268,3072.5,3071.8,0.61510039]
[1720500570037,2.4268,3072.5,3071.8,0.55]
[1720500570336,2.66948,3072.5,3071.7,0.55]
[1720500570628,2.66948,3072.5,3071.3,3.25594]
[1720500570928,0.266948,3072.4,3071.4,0.55]
[1720500571134,2.4513,3072.3,3070.2,2.4733]
[1720500571427,2.4513,3072.3,3070.4,4.94689]
[1720500571793,2.4513,3072.3,3071.2,3.25604]
[1720500572007,2.4513,3072.3,3071.4,3.25582]
[1720500572205,2.4513,3072.3,3071.5,0.06510544]
[1720500572630,9.8323,3072.8,3071.8,3.25541]
[1720500572812,9.8323,3072.8,3071.9,0.06509595]
[1720500573007,2.4723,3072.8,3071.9,0.06509595]
[1720500573414,2.71953,3072.8,3071.7,3.25552]
[1720500573613,2.71953,3072.8,3071.8,0.55]
[1720500574206,2.71953,3072.8,3071.8,3.87047786]
[1720500574419,2.4723,3072.8,3071.8,3.87047786]
[1720500574837,2.4723,3072.8,3072.0,3.25519]
[1720500575004,2.4723,3072.8,3072.1,0.61509353]
[1720500575208,2.4723,3072.8,3072.1,0.55]
[1720500576450,2.4723,3072.8,3072.1,0.61509342]
[1720500576610,2.4723,3072.8,3072.1,0.55]
[1720500577607,2.4723,3072.8,3072.1,3.87017343]
[1720500578240,2.4723,3072.8,3072.1,3.80508]
[1720500582137,2.4723,3072.8,3072.1,3.87017345]
[1720500582444,2.59799206,3073.1,3072.5,3.25458]
[1720500582646,2.59799206,3073.1,3072.1,0.61509345]
[1720500582647,2.59799206,3073.1,3072.8,3.25429]
[1720500583052,2.4088,3073.5,3072.9,3.80424]
[1720500583263,2.4088,3073.5,3073.0,3.25414]
[1720500583590,2.4088,3073.9,3073.1,3.86911462]
[1720500583878,2.4088,3073.9,3073.1,3.31911462]
[1720500583879,3.1448,3073.9,3073.1,3.31911462]
[1720500584083,2.4088,3073.9,3073.1,3.31911462]
[1720500584237,2.4088,3073.9,3073.2,3.25384]
[1720500584436,2.4088,3073.9,3073.3,0.55]
[1720500584739,2.64968,3073.9,3073.3,0.55]
[1720500585571,2.64968,3073.9,3073.3,0.6150686]
[1720500585874,2.4088,3073.9,3073.3,0.6150686]
[1720500586533,2.4088,3073.9,3073.3,0.55]
[1720500586977,2.4088,3073.9,3073.2,3.25392]
[1720500587139,2.4088,3073.9,3073.3,0.55]
[1720500588178,2.4088,3073.9,3073.3,0.6150691]
[1720500588379,3.0,3074.2,3073.3,3.8688491]
[1720500588555,3.0,3074.2,3073.4,3.25362]
[1720500588756,3.0,3074.2,3073.5,0.55]
[1720500589084,1.53816921,3074.2,3073.5,0.55]
[1720500590179,1.53816921,3074.2,3073.3,3.80382]
[1720500590966,1.53816921,3074.2,3073.3,0.55]
[1720500591278,1.53816921,3074.2,3073.1,0.55]
[1720500591445,0.41361613,3074.1,3073.1,0.55]
[1720500594597,2.4237,3074.0,3072.1,5.61903]
[1720500594888,2.4237,3073.8,3072.0,3.25517]
[1720500595182,2.83507,3073.7,3071.8,3.25535]
[1720500595351,2.4237,3073.5,3071.9,3.25529]
[1720500596495,2.4237,3073.5,3072.0,3.2552]
[1720500596699,0.54237,3073.4,3072.0,3.2552]
[1720500597062,3.54237,3073.4,3072.0,3.2552]
[1720500597479,3.54237,3073.4,3072.1,0.55]
[1720500597664,3.54237,3073.4,3072.1,3.80509]
[1720500597859,3.54237,3073.4,3072.4,3.25477]
[1720500598100,3.54237,3073.4,3072.5,0.6150845]
[1720500598281,0.54237,3073.4,3072.5,3.8697545]
[1720500598460,2.4237,3073.5,3072.5,3.80467]
[1720500598661,2.4237,3073.5,3072.5,0.55]
[1720500598877,2.4237,3073.5,3072.4,0.55]
[1720500599102,0.54237,3073.4,3072.4,0.55]
[1720500601212,2.4088,3073.3,3071.9,3.25524]
[1720500601372,5.4088,3073.3,3071.9,3.25524]
[1720500601773,5.4088,3073.3,3072.0,3.25519]
[1720500602068,2.4088,3073.3,3072.4,3.25469]
[1720500602269,2.4088,3073.3,3072.7,3.25445]
[1720500602580,1.35800337,3073.7,3073.3,3.25382]
[1720500602974,2.397,3074.1,3073.4,0.55]
[1720500603179,2.6367,3074.1,3072.8,3.25433]
[1720500603385,2.6367,3074.1,3072.9,3.2542]
[1720500603671,0.26367,3074.0,3073.0,3.80404]
[1720500603872,0.26367,3074.0,3073.0,3.25404]
[1720500604107,0.26367,3074.0,3073.1,0.55]
[1720500604425,0.26367,3074.0,3072.6,3.25449]
[1720500604611,0.26367,3074.0,3072.7,0.55]
[1720500604612,0.266067,3073.9,3072.7,0.55]
[1720500605486,0.266067,3073.9,3072.5,0.55]
[1720500606015,2.3343,3073.8,3072.5,0.55]
[1720500606204,1.12741812,3073.7,3072.5,3.80466]
[1720500606407,4.38745482,3073.7,3072.6,3.25457]
[1720500606617,1.12741812,3073.6,3072.7,0.55]
[1720500606775,3.2600367,3073.7,3072.7,3.80444]
[1720500608009,0.2600367,3073.7,3072.8,3.25432]
[1720500608198,2.3343,3073.8,3073.1,3.25403]
[1720500608576,1.12731172,3073.7,3073.2,3.80391]
[1720500608914,2.3678,3074.3,3073.3,3.25374]
[1720500609077,2.09995583,3074.2,3073.4,3.86878558]
[1720500609276,2.3678,3074.3,3073.4,3.31878558]
[1720500609588,1.12713983,3074.2,3073.5,0.55]
[1720500609790,1.12713983,3074.1,3073.5,0.55]
[1720500609988,1.12713983,3074.2,3073.5,0.55]
[1720500610399,0.34949398,3074.2,3073.5,0.55]
[1720500610719,0.34949398,3074.2,3073.3,3.80382]
[1720500610720,1.12720171,3074.1,3073.3,3.80382]
[1720500610930,0.34949398,3074.2,3073.3,3.80382]
[1720500611087,0.34949398,3074.2,3072.9,3.25422]
[1720500611088,1.12720465,3074.0,3072.9,3.25422]
[1720500611419,1.12720465,3073.9,3072.8,3.25435]
[1720500611728,1.12729015,3073.8,3072.9,3.25419]
[1720500611901,1.12729015,3073.7,3072.9,3.25419]
[1720500612216,1.12729015,3073.7,3072.8,3.25435]
[1720500612217,1.12731757,3073.6,3072.8,3.25434]
[1720500612433,2.2538,3073.5,3072.8,3.25434]
[1720500612588,2.2538,3073.5,3072.9,0.55]
[1720500613129,2.3952,3074.1,3072.9,0.55]
[1720500613321,1.1272359,3074.0,3073.0,3.25412]
[1720500613532,1.1272359,3073.9,3073.0,3.25412]
[1720500613827,3.37072,3074.1,3073.2,3.25392]
[1720500613828,1.1272359,3073.8,3073.2,3.25392]
[1720500614131,2.3952,3074.1,3073.3,0.55]
[1720500614329,1.12713803,3074.0,3073.3,0.55]
[1720500614635,1.12713803,3073.9,3073.3,0.55]
[1720500614786,1.12713803,3073.9,3073.2,3.80393]
[1720500615688,2.3952,3074.1,3073.2,3.80393]
[1720500615894,1.1272167,3074.0,3073.2,3.80393]
[1720500616120,1.1272167,3073.9,3073.2,3.80393]
[1720500616426,1.1272167,3073.8,3073.3,3.25382]
[1720500616629,1.1272167,3074.0,3073.3,3.25382]
[1720500616831,1.12716788,3073.9,3073.3,3.25382]
[1720500617128,7.36,3074.2,3073.3,3.25382]
[1720500617323,7.36,3074.2,3073.5,3.25351]
[1720500617504,1.1271231,3074.1,3073.6,3.2535]
[1720500617689,1.1271231,3074.0,3073.7,3.31839422]
[1720500617890,8.86,3074.8,3074.2,3.25287]
[1720500618091,1.22133232,3074.8,3074.3,3.80269]
[1720500618319,1.12687584,3074.7,3074.3,3.80269]
[1720500618536,3.35332324,3075.0,3074.3,3.80269]
[1720500618705,1.12689774,3074.9,3074.4,3.25264]
[1720500618895,3.35332324,3075.0,3074.4,3.25264]
[1720500619097,1.12684313,3074.9,3074.4,3.25266]
[1720500619330,3.35332324,3075.0,3074.4,3.25266]
[1720500619528,1.12687703,3074.9,3074.4,3.25266]
[1720500619834,3.35332324,3075.0,3074.4,3.25266]
[1720500621300,3.35332324,3075.0,3074.3,0.55]
[1720500621301,0.33533232,3075.0,3074.3,0.55]
[1720500621534,9.06184757,3075.4,3073.8,3.25323]
[1720500621535,2.3065,3074.8,3073.8,3.25323]
[1720500621837,2.3065,3074.8,3074.0,3.25302]
[1720500621993,2.53715,3074.8,3074.0,3.25302]
[1720500622912,2.53715,3074.8,3074.1,3.25297]
[1720500623129,2.351,3075.2,3074.1,3.25297]
[1720500623335,1.12693445,3075.1,3074.1,3.25297]
[1720500623511,1.12693445,3075.0,3074.2,0.61505357]
[1720500623712,3.0,3075.1,3074.4,3.25266]
[1720500623914,2.351,3075.2,3074.4,3.25266]
[1720500624230,0.2351,3075.1,3074.5,3.25248]
[1720500624441,2.351,3075.2,3074.5,3.25248]
[1720500625628,3.0,3075.3,3074.6,3.25245]
[1720500627209,3.0,3075.3,3074.5,3.25255]
[1720500627822,7.36,3075.4,3074.6,3.25243]
[1720500628023,8.32885,3075.4,3074.6,3.25243]
[1720500629848,0.96885,3075.4,3074.6,3.25243]
[1720500630048,3.0,3075.5,3074.6,3.25243]
[1720500630253,1.12682213,3075.4,3074.6,3.25243]
[1720500630550,3.0,3075.5,3074.6,3.25243]
[1720500630762,1.1268207,3075.4,3074.7,3.25234]
[1720500631051,3.0,3075.5,3074.7,3.25234]
[1720500631233,1.65967025,3075.4,3074.7,3.25234]
[1720500631415,3.0,3075.5,3074.8,3.31727108]
[1720500631616,3.0,3075.7,3074.8,3.86727108]
[1720500631948,3.732279,3076.3,3075.2,3.25174]
[1720500631949,5.03199206,3076.3,3075.2,3.25174]
[1720500632106,1.12649991,3076.2,3075.6,3.25131]
[1720500632313,4.13589916,3076.7,3076.0,3.25087]
[1720500632314,2.434,3076.7,3076.0,3.25087]
[1720500632825,2.434,3076.7,3076.1,3.25084]
[1720500633025,0.2434,3076.7,3076.1,3.25084]
[1720500633282,2.434,3077.1,3076.5,3.25043]
[1720500633726,2.382,3077.6,3076.6,3.25033]
[1720500634122,2.382,3077.6,3076.7,3.25022]
[1720500634322,0.3882,3077.5,3076.7,3.25022]
[1720500634928,0.3882,3077.5,3076.5,3.25041]
[1720500635163,0.3882,3077.5,3076.6,3.8003]
[1720500635336,3.3882,3077.5,3076.6,3.8003]
[1720500636140,3.3882,3077.5,3076.5,3.25044]
[1720500636339,0.57702,3077.4,3075.9,3.25102]
[1720500638140,0.57702,3077.4,3076.0,0.55]
[1720500639245,2.4603,3077.2,3075.3,2.2656]
[1720500639479,3.08125743,3077.3,3075.4,3.25159]
[1720500639480,2.3038,3077.0,3075.4,3.25159]
[1720500639773,2.3038,3077.0,3075.0,3.252]
[1720500639774,2.3038,3076.9,3075.0,3.252]
[1720500639928,5.145,3077.0,3074.8,3.25223]
[1720500639929,1.69,3076.6,3074.8,3.25223]
[1720500640128,2.3038,3076.5,3074.8,3.25223]
[1720500640535,1.12664473,3076.4,3074.8,3.25223]
[1720500640766,5.3038,3076.5,3074.6,3.25243]
[1720500640767,2.4979,3076.2,3074.6,3.25243]
[1720500641181,5.4979,3076.2,3074.6,3.25243]
[1720500641495,5.4979,3076.2,3074.5,3.25255]
[1720500641787,1.74081812,3076.1,3074.6,3.25244]
[1720500642014,4.74081812,3076.1,3074.6,3.25244]
[1720500642183,3.61409445,3076.1,3074.6,3.25244]
[1720500642379,0.61119945,3076.0,3074.6,3.25244]
[1720500642755,0.61119945,3076.0,3074.7,0.55]
[1720500644492,2.2894,3075.9,3074.7,0.55]
[1720500644695,5.2894,3075.9,3074.7,0.55]
[1720500645059,2.2894,3075.9,3074.7,0.55]
[1720500645261,0.22894,3075.8,3074.7,0.55]
[1720500645601,3.22894,3075.8,3074.7,0.55]
[1720500650487,2.2894,3075.9,3075.1,3.25184]
[1720500650688,7.36,3076.2,3075.4,3.25159]
[1720500650887,2.373,3076.3,3075.4,3.31661239]
[1720500651105,2.6103,3076.3,3075.4,3.31661239]
[1720500651313,2.373,3076.3,3075.6,3.25139]
[1720500651604,2.373,3076.3,3075.4,3.31662239]
[1720500651605,2.373,3076.3,3075.7,0.55]
[1720500652123,2.373,3076.3,3075.4,3.2516]
[1720500652124,2.373,3076.3,3075.5,0.55]
[1720500652291,2.373,3076.3,3075.5,3.8015]
[1720500652478,2.373,3076.3,3075.6,3.25139]
[1720500652679,2.373,3076.3,3075.7,0.55]
[1720500652923,2.373,3076.3,3075.5,0.55]
[1720500653217,2.373,3076.3,3075.3,0.55]
[1720500656589,2.373,3076.3,3075.0,0.55]
[1720500656833,2.373,3076.3,3075.6,3.25139]
[1720500657054,2.373,3076.3,3075.7,0.55]
[1720500657202,2.6103,3076.3,3075.2,3.25174]
[1720500657406,2.6103,3076.3,3075.3,3.8017]
[1720500658995,2.6103,3076.3,3074.7,3.25229]
[1720500659337,1.38755195,3076.2,3074.7,3.25229]
[1720500659628,1.12654181,3076.1,3074.9,3.25211]
[1720500659839,0.26103,3076.2,3074.9,3.25211]
[1720500660019,1.12654265,3076.1,3074.9,3.25211]
[1720500660221,0.26103,3076.2,3074.9,3.25211]
[1720500660401,0.34003035,3076.1,3075.0,0.61503259]
[1720500660606,0.34003035,3076.1,3075.3,3.25167]
[1720500660819,0.34003035,3076.1,3075.4,0.55]
[1720500661453,0.34003035,3076.1,3074.3,0.32276589]
[1720500661737,2.3151,3076.0,3074.5,3.25253]
[1720500661894,1.39217473,3075.9,3074.5,2.97756143]
[1720500662092,1.12666169,3075.8,3074.7,3.25234]
[1720500662293,1.12666169,3075.7,3074.7,3.25234]
[1720500662492,0.26551304,3075.9,3074.7,3.25234]
[1720500662736,1.38473788,3075.8,3074.7,3.25234]
[1720500662893,1.12667658,3075.7,3074.6,3.25237]
[1720500663088,1.12667658,3075.7,3074.7,0.55]
[1720500663294,0.1724757,3075.6,3074.7,0.55]
[1720500663495,0.1724757,3075.6,3074.8,3.25223]
[1720500663733,0.34001907,3075.8,3075.1,3.25186]
[1720500663945,0.34001907,3075.8,3074.7,0.55]
[1720500664103,0.34001907,3075.8,3074.7,3.80231]
[1720500664945,1.12663647,3075.7,3074.8,3.25222]
[1720500665149,0.34001907,3075.8,3074.9,0.55]
[1720500665451,1.12662288,3075.7,3074.9,0.55]
[1720500665614,0.34001907,3075.8,3074.9,0.55]
[1720500665931,1.12662576,3075.7,3074.9,0.55]
[1720500666238,1.12662576,3075.6,3074.9,0.55]
[1720500666533,0.34001907,3075.8,3074.9,0.55]
[1720500666534,1.12662576,3075.7,3074.9,0.55]
[1720500666832,1.12662576,3075.6,3074.9,0.55]
[1720500667038,0.34001907,3075.8,3075.0,0.06503456]
[1720500667039,1.12662576,3075.7,3075.0,0.06503456]
[1720500667340,0.34001907,3075.8,3075.2,3.25179]
[1720500667508,0.34001907,3075.8,3075.3,0.61502644]
[1720500667834,7.36,3076.2,3075.6,3.25139]
[1720500668037,0.34000368,3076.1,3075.7,0.61501821]
[1720500668736,0.34000368,3076.1,3075.7,0.55]
[1720500668909,2.3151,3076.5,3075.8,3.31619503]
[1720500669110,7.69998274,3076.9,3076.1,3.25077]
[1720500669315,1.12618945,3076.8,3076.1,3.25077]
[1720500669519,1.12618945,3076.8,3076.0,0.06500768]
[1720500669520,1.12619781,3076.7,3076.2,0.55]
[1720500669716,1.11412722,3076.8,3076.2,0.55]
[1720500669924,1.12620506,3076.7,3076.0,3.80096]
[1720500670240,1.12620284,3076.6,3075.5,3.25144]
[1720500670440,1.12620284,3076.5,3075.6,0.55]
[1720500670742,2.2756,3076.3,3075.6,0.55]
[1720500671335,2.2756,3076.3,3075.4,3.8016]
[1720500673546,2.2756,3076.3,3075.5,3.25148]
[1720500673749,1.12638971,3076.2,3075.6,0.55]
[1720500673950,0.22756,3076.2,3075.4,3.8016]
[1720500674250,0.22756,3076.2,3075.4,0.55]
[1720500674449,0.250316,3076.1,3075.4,0.55]
[1720500674657,0.250316,3076.1,3075.4,3.80158]
[1720500675424,0.250316,3076.1,3075.4,0.55]
[1720500675626,0.250316,3076.1,3075.3,0.55]
[1720500675958,1.1264769,3076.0,3075.0,0.55]
[1720500676257,0.250316,3076.1,3075.1,3.25185]
[1720500676459,0.250316,3076.1,3075.2,0.55]
[1720500676962,1.12646881,3076.0,3075.2,0.55]
[1720500677266,0.250316,3076.1,3075.2,0.55]
[1720500677469,1.12647929,3076.0,3075.2,0.55]
[1720500677650,0.250316,3076.1,3075.2,3.80181]
[1720500677843,1.12649804,3076.0,3075.2,3.80181]
[1720500678254,1.1265033,3075.9,3075.2,3.80181]
[1720500678568,0.250316,3076.1,3075.2,3.80181]
[1720500678858,1.12651361,3076.0,3075.2,3.80181]
[1720500679061,1.12651361,3075.9,3075.2,3.80181]
[1720500679356,0.250316,3076.1,3075.2,3.80181]
[1720500679561,1.12651388,3076.0,3075.2,3.80181]
[1720500679764,1.12651388,3075.9,3075.2,3.80181]
[1720500679966,1.12651388,3076.0,3075.2,3.80181]
[1720500680171,1.12651406,3075.9,3075.2,3.80181]
[1720500680373,0.250316,3076.1,3075.2,3.80181]
[1720500680556,1.12651433,3076.0,3075.2,3.80181]
[1720500680875,1.12651433,3075.9,3075.2,3.80181]
[1720500681053,0.250316,3076.1,3075.2,3.80181]
[1720500681444,1.12646284,3076.0,3075.2,3.80181]
[1720500681758,1.12646284,3075.9,3075.2,3.80181]
[1720500681965,1.12646284,3076.0,3075.2,3.80181]
[1720500682569,1.12646284,3076.0,3075.2,0.55]
[1720500682772,1.12646284,3076.0,3075.1,3.80187]
[1720500683342,1.12646284,3076.0,3074.7,3.25233]
[1720500683682,2.4931,3075.8,3074.7,3.25233]
[1720500683853,1.12646284,3075.7,3074.7,3.25233]
[1720500684577,1.12668438,3075.6,3074.7,3.25233]
[1720500684784,1.12668438,3075.5,3074.7,3.25233]
[1720500685085,0.33999516,3075.7,3074.8,0.55]
[1720500685086,1.12668438,3075.6,3074.8,0.55]
[1720500685282,1.12668438,3075.5,3074.5,0.55]
[1720500685487,1.12668438,3075.5,3074.6,3.25238]
[1720500685780,1.4892409,3075.5,3074.7,0.55]
[1720500685988,1.12668438,3075.4,3074.7,0.55]
[1720500686185,1.12668438,3075.4,3074.7,3.80232]
[1720500686392,0.36255652,3075.5,3074.7,3.80232]
[1720500686694,1.12668302,3075.4,3074.7,3.80232]
[1720500686989,0.45381643,3075.6,3074.7,3.80232]
[1720500687189,1.12667454,3075.5,3074.7,3.80232]
[1720500687488,0.45381643,3075.6,3074.7,3.80232]
[1720500687696,1.12665708,3075.5,3074.8,3.25223]
[1720500687879,0.45381643,3075.6,3074.9,0.55]